bitfinex-derivatives/quotes_BTCF0:USTF0_20260119
["timestamp","ask_amount","ask_price","bid_price","bid_amount"]
[1768810666437,0.02435433,92900.0,92891.0,0.010771]
[1768810666639,0.0682192,92901.0,92888.0,0.010771]
[1768810669643,0.0682192,92901.0,92884.0,0.09696]
[1768810670742,0.00236804,92904.0,92891.0,0.010771]
[1768810670946,0.07058724,92904.0,92891.0,0.010771]
[1768810672151,0.08135624,92904.0,92884.0,0.09696]
[1768810672352,0.08135624,92904.0,92888.0,0.010771]
[1768810673245,0.07058724,92904.0,92890.0,0.010771]
[1768810674553,0.07058724,92904.0,92884.0,0.09696]
[1768810674954,0.07058724,92904.0,92889.0,0.010771]
[1768810678454,0.07536194,92902.0,92886.0,0.107691]
[1768810678645,0.07536194,92902.0,92888.0,0.010771]
[1768810678842,0.02427506,92901.0,92886.0,0.09692]
[1768810679045,0.02427506,92900.0,92886.0,0.09692]
[1768810679355,0.02427506,92899.0,92886.0,0.09692]
[1768810679550,0.02427506,92898.0,92886.0,0.09692]
[1768810679750,0.02427506,92897.0,92886.0,0.09692]
[1768810680055,0.07536194,92902.0,92894.0,0.01077]
[1768810680255,0.00236804,92904.0,92896.0,0.01077]
[1768810680565,0.09692,92922.0,92898.0,0.00972786]
[1768810680753,0.10683443,92922.0,92898.0,0.02049786]
[1768810681056,0.00991443,92921.0,92900.0,0.14471607]
[1768810681259,0.00991443,92918.0,92900.0,0.14471607]
[1768810681860,0.010769,92911.0,92896.0,0.09692]
[1768810682064,0.02137043,92922.0,92900.0,0.14471607]
[1768810682251,0.14471607,92920.0,92900.0,0.14471607]
[1768810682452,0.07536194,92919.0,92900.0,0.14471607]
[1768810683268,0.07536194,92914.0,92900.0,0.14471607]
[1768810684162,0.010768,92913.0,92897.0,0.00972786]
[1768810684355,0.08612994,92913.0,92897.0,0.00972786]
[1768810684556,0.08612994,92913.0,92900.0,0.14471607]
[1768810684859,0.07536194,92916.0,92903.0,0.010769]
[1768810685060,0.07536194,92921.0,92903.0,0.010769]
[1768810685867,0.07536194,92919.0,92903.0,0.010769]
[1768810688159,0.08612994,92918.0,92902.0,0.00972786]
[1768810692073,0.0992422,92917.0,92902.0,0.00972786]
[1768810692280,0.02388026,92916.0,92902.0,0.00972786]
[1768810692469,0.02388026,92915.0,92902.0,0.00972786]
[1768810692768,0.02388026,92914.0,92902.0,0.00972786]
[1768810692965,0.02388026,92913.0,92902.0,0.00972786]
[1768810693169,0.02388026,92912.0,92902.0,0.00972786]
[1768810693370,0.02388026,92911.0,92902.0,0.02049686]
[1768810693676,0.02388026,92910.0,92902.0,0.02049686]
[1768810693871,0.02388026,92909.0,92902.0,0.02049686]
[1768810694063,0.02388026,92908.0,92902.0,0.02049686]
[1768810694268,0.07536194,92917.0,92902.0,0.02049686]
[1768810694467,0.02387765,92916.0,92902.0,0.02049686]
[1768810694668,0.09923959,92915.0,92902.0,0.00972786]
[1768810694875,0.02387765,92914.0,92902.0,0.02049686]
[1768810695078,0.02387765,92913.0,92902.0,0.02049686]
[1768810695374,0.02387765,92912.0,92902.0,0.02049686]
[1768810695583,0.02387765,92911.0,92902.0,0.02049686]
[1768810695786,0.02387765,92910.0,92902.0,0.02049686]
[1768810695985,0.02387765,92909.0,92902.0,0.02049686]
[1768810696189,0.07536194,92915.0,92902.0,0.02049686]
[1768810697193,0.07536194,92915.0,92902.0,0.00972786]
[1768810699894,0.010768,92917.0,92902.0,0.00972786]
[1768810700392,0.08612994,92917.0,92902.0,0.00972786]
[1768810700694,0.07536194,92917.0,92907.0,0.14471607]
[1768810700884,0.07536194,92917.0,92903.0,0.010769]
[1768810701487,0.07536194,92917.0,92907.0,0.14471607]
[1768810704890,0.010768,92918.0,92907.0,0.14471607]
[1768810705897,0.010768,92918.0,92903.0,0.00944647]
[1768810706079,0.010768,92918.0,92908.0,0.14471607]
[1768810706278,0.010768,92916.0,92908.0,0.14471607]
[1768810706493,0.010768,92916.0,92903.0,0.00944647]
[1768810708286,0.0236923,92915.0,92903.0,0.00944647]
[1768810708487,0.0236923,92914.0,92903.0,0.00944647]
[1768810708687,0.0236923,92913.0,92903.0,0.00944647]
[1768810709594,0.0236923,92912.0,92903.0,0.00944647]
[1768810709790,0.02370004,92911.0,92903.0,0.00944647]
[1768810709994,0.02370004,92910.0,92903.0,0.00944647]
[1768810710289,0.02370004,92909.0,92903.0,0.00944647]
[1768810710498,0.02370004,92908.0,92903.0,0.00944647]
[1768810710690,0.02370004,92907.0,92903.0,0.00944647]
[1768810710890,0.09669303,92917.0,92903.0,0.00944647]
[1768810711094,0.02369996,92916.0,92903.0,0.00944647]
[1768810711294,0.02369996,92915.0,92903.0,0.00944647]
[1768810711498,0.02369996,92914.0,92903.0,0.00944647]
[1768810711690,0.02369996,92913.0,92903.0,0.00944647]
[1768810711890,0.02369996,92912.0,92903.0,0.00944647]
[1768810712093,0.02369996,92911.0,92903.0,0.02021547]
[1768810712301,0.02369996,92910.0,92903.0,0.02021547]
[1768810712504,0.02369996,92909.0,92903.0,0.02021547]
[1768810712691,0.08592503,92917.0,92904.0,0.00944647]
[1768810713089,0.08592503,92917.0,92907.0,0.14471607]
[1768810713701,0.08592503,92922.0,92907.0,0.14471607]
[1768810714002,0.08592503,92922.0,92910.0,0.14471607]
[1768810714201,0.08592503,92922.0,92910.0,0.08653856]
[1768810714702,0.11346144,92910.0,92906.0,0.02021547]
[1768810714892,0.08592503,92920.0,92907.0,0.00944647]
[1768810715997,0.010767,92921.0,92907.0,0.00944647]
[1768810717100,0.08592503,92923.0,92907.0,0.00944647]
[1768810717493,0.08592503,92923.0,92910.0,0.14471607]
[1768810717999,0.09669203,92923.0,92910.0,0.14471607]
[1768810718987,0.00236753,92924.0,92913.0,0.14471607]
[1768810719199,0.00236753,92924.0,92911.0,0.01986333]
[1768810719599,0.00236753,92924.0,92912.0,0.00909533]
[1768810720190,0.00236741,92929.0,92920.0,0.010767]
[1768810720394,0.010765,92938.0,92921.0,0.00909533]
[1768810720798,0.010766,92936.0,92921.0,0.00909533]
[1768810721503,0.010766,92934.0,92921.0,0.00909533]
[1768810721699,0.010765,92938.0,92921.0,0.00909533]
[1768810721900,0.010765,92941.0,92922.0,0.10010371]
[1768810722205,0.010765,92942.0,92925.0,0.00909533]
[1768810722901,0.09692,92945.0,92925.0,0.00909533]
[1768810722902,0.010765,92940.0,92925.0,0.00909533]
[1768810724002,0.09589594,92943.0,92925.0,0.00909533]
[1768810724799,0.11886815,92942.0,92925.0,0.00909533]
[1768810725109,0.11886815,92941.0,92925.0,0.00909533]
[1768810725306,0.02297221,92940.0,92925.0,0.00909533]
[1768810725506,0.02297221,92939.0,92925.0,0.00909533]
[1768810725705,0.09589594,92941.0,92925.0,0.00909533]
[1768810725706,0.02297221,92938.0,92925.0,0.00909533]
[1768810726006,0.02297221,92937.0,92925.0,0.00909533]
[1768810726204,0.010765,92938.0,92922.0,0.00016146]
[1768810726205,0.02297221,92936.0,92922.0,0.00016146]
[1768810726410,0.010766,92936.0,92922.0,0.00016146]
[1768810726706,0.09589594,92937.0,92922.0,0.00016146]
[1768810726908,0.10666094,92940.0,92922.0,0.00925679]
[1768810727108,0.010765,92938.0,92922.0,0.00925679]
[1768810727408,0.09589594,92940.0,92922.0,0.00925679]
[1768810727409,0.02296241,92937.0,92922.0,0.00925679]
[1768810727705,0.09589594,92940.0,92924.0,0.00909533]
[1768810727904,0.02295852,92939.0,92926.0,0.01986233]
[1768810728208,0.09826296,92944.0,92926.0,0.01986233]
[1768810728506,0.11885422,92943.0,92926.0,0.01986233]
[1768810728708,0.02295828,92942.0,92926.0,0.01986233]
[1768810729010,0.02295828,92941.0,92930.0,0.14471607]
[1768810729207,0.02295828,92940.0,92930.0,0.14471607]
[1768810729509,0.09589594,92943.0,92930.0,0.14471607]
[1768810729696,0.02295088,92942.0,92930.0,0.14471607]
[1768810729901,0.02295088,92941.0,92930.0,0.14471607]
[1768810730106,0.09589594,92943.0,92930.0,0.14471607]
[1768810730308,0.02295069,92942.0,92930.0,0.14471607]
[1768810730505,0.02295069,92941.0,92930.0,0.14471607]
[1768810730706,0.09589594,92943.0,92930.0,0.14471607]
[1768810730907,0.0229479,92942.0,92930.0,0.14471607]
[1768810731108,0.0229479,92941.0,92930.0,0.14471607]
[1768810731308,0.09589594,92943.0,92930.0,0.14471607]
[1768810731496,0.02294573,92942.0,92930.0,0.14471607]
[1768810731703,0.00236702,92944.0,92930.0,0.14471607]
[1768810731903,0.02294573,92943.0,92930.0,0.14471607]
[1768810732102,0.02294573,92942.0,92930.0,0.14471607]
[1768810732307,0.00236702,92944.0,92930.0,0.14471607]
[1768810732510,0.02294412,92943.0,92930.0,0.14471607]
[1768810732702,0.02294412,92942.0,92930.0,0.14471607]
[1768810732905,0.00236702,92944.0,92930.0,0.14471607]
[1768810733109,0.02294394,92943.0,92935.0,0.11052151]
[1768810733310,0.00236702,92944.0,92935.0,0.11052151]
[1768810733311,0.00236702,92944.0,92936.0,0.01040895]
[1768810735205,0.10118442,92955.0,92934.0,0.14471607]
[1768810735206,0.010762,92967.0,92948.0,0.01040895]
[1768810735519,0.11194642,92967.0,92950.0,0.14471607]
[1768810735716,0.10118442,92967.0,92950.0,0.14471607]
[1768810737120,0.010762,92966.0,92950.0,0.14471607]
[1768810737421,0.01312851,92964.0,92950.0,0.14471607]
[1768810737816,0.00236651,92964.0,92950.0,0.14471607]
[1768810740220,0.010762,92963.0,92950.0,0.14471607]
[1768810741422,0.11194742,92961.0,92950.0,0.14471607]
[1768810742017,0.10118442,92961.0,92950.0,0.14471607]
[1768810742723,0.00236651,92964.0,92950.0,0.14471607]
[1768810742922,0.00236651,92964.0,92946.0,0.02117295]
[1768810743623,0.10355093,92964.0,92946.0,0.02117295]
[1768810743924,0.10355093,92964.0,92946.0,0.01040895]
[1768810744122,0.010762,92963.0,92946.0,0.01040895]
[1768810744332,0.010762,92963.0,92947.0,0.11052151]
[1768810744526,0.01312851,92964.0,92947.0,0.01040895]
[1768810744824,0.11431293,92964.0,92947.0,0.01040895]
[1768810745223,0.010763,92962.0,92947.0,0.01040895]
[1768810745916,0.010763,92960.0,92947.0,0.01040895]
[1768810747016,0.11431293,92964.0,92947.0,0.01040895]
[1768810748226,0.01312851,92964.0,92947.0,0.01040895]
[1768810748425,0.11431293,92964.0,92947.0,0.01040895]
[1768810749525,0.10355093,92964.0,92948.0,0.010764]
[1768810749827,0.00236651,92964.0,92949.0,0.01040895]
[1768810751228,0.00236651,92964.0,92950.0,0.01040895]
[1768810751627,0.00236651,92964.0,92953.0,0.01040895]
[1768810752922,0.01312851,92964.0,92953.0,0.01040895]
[1768810753528,0.01312851,92964.0,92947.0,0.02117295]
[1768810753722,0.01312851,92964.0,92948.0,0.01040895]
[1768810754131,0.01312851,92964.0,92948.0,0.11052151]
[1768810754333,0.01312851,92964.0,92949.0,0.01040895]
[1768810755233,0.00236651,92964.0,92949.0,0.02117295]
[1768810756331,0.00236651,92964.0,92950.0,0.01040895]
[1768810756630,0.010763,92961.0,92950.0,0.01040895]
[1768810756836,0.010763,92960.0,92950.0,0.01040895]
[1768810757031,0.00236651,92964.0,92950.0,0.01040895]
[1768810757934,0.00236651,92964.0,92953.0,0.01040895]
[1768810758833,0.00236651,92964.0,92955.0,0.010763]
[1768810759038,0.00236651,92964.0,92945.0,0.00016137]
[1768810759039,0.00491554,92981.0,92976.0,0.010761]
[1768810759248,0.00236549,93004.0,92984.0,0.01040895]
[1768810759540,0.00236549,93004.0,92976.0,0.09688]
[1768810759541,0.00236549,93004.0,92991.0,0.01040895]
[1768810759836,0.09924538,93009.0,92996.0,0.01040895]
[1768810760034,0.010756,93015.0,93002.0,0.01040895]
[1768810760236,0.11194142,93014.0,92996.0,0.09688]
[1768810760544,0.010758,93005.0,92996.0,0.09688]
[1768810760843,0.10118442,93009.0,92989.0,0.11052151]
[1768810761133,0.010757,93006.0,92990.0,0.09688]
[1768810761339,0.10118442,93007.0,92990.0,0.09688]
[1768810761340,0.010758,93001.0,92990.0,0.09688]
[1768810761929,0.010758,93001.0,92989.0,0.01040895]
[1768810762425,0.010758,93001.0,92990.0,0.01040895]
[1768810762629,0.010758,93001.0,92991.0,0.01040895]
[1768810763728,0.010758,93005.0,92991.0,0.01040895]
[1768810764444,0.010758,93003.0,92991.0,0.01040895]
[1768810764827,0.10014173,93014.0,92994.0,0.0155129]
[1768810765033,0.010758,93002.0,92994.0,0.0155129]
[1768810765638,0.010758,93005.0,92994.0,0.0155129]
[1768810766041,0.010758,93005.0,92990.0,0.09977805]
[1768810766237,0.010758,93005.0,92990.0,0.11529095]
[1768810766542,0.010758,93005.0,92991.0,0.0155129]
[1768810766932,0.010758,93003.0,92992.0,0.0155129]
[1768810767840,0.010758,93003.0,92994.0,0.11529095]
[1768810768045,0.010758,93003.0,92995.0,0.0155129]
[1768810768238,0.10014173,93016.0,92995.0,0.0155129]
[1768810768239,0.010757,93007.0,92995.0,0.0155129]
[1768810768543,0.010757,93007.0,92994.0,0.09977805]
[1768810768544,0.095,93018.0,93002.0,0.09977805]
[1768810769540,0.010757,93014.0,93002.0,0.09977805]
[1768810770739,0.095,93018.0,92969.0,0.0155129]
[1768810770740,0.10014173,92996.0,92969.0,0.0155129]
[1768810770935,0.10014173,92990.0,92970.0,0.09684]
[1768810771136,0.01076,92986.0,92970.0,0.09684]
[1768810771336,0.01076,92982.0,92969.0,0.0155129]
[1768810771536,0.10014173,92990.0,92969.0,0.0155129]
[1768810771744,0.01499995,92991.0,92970.0,0.1123529]
[1768810772246,0.00016127,92989.0,92971.0,0.0155129]
[1768810772643,0.01076,92980.0,92971.0,0.0155129]
[1768810772842,0.01076,92980.0,92972.0,0.09684]
[1768810773348,0.11514168,92987.0,92966.0,0.0155129]
[1768810773548,0.10014173,92985.0,92967.0,0.09684]
[1768810773940,0.10014173,92984.0,92963.0,0.09977805]
[1768810774144,0.10014173,92982.0,92964.0,0.09684]
[1768810774644,0.010761,92976.0,92964.0,0.09684]
[1768810774846,0.010761,92974.0,92964.0,0.09684]
[1768810775343,0.010761,92974.0,92965.0,0.09684]
[1768810775642,0.01499995,92983.0,92960.0,0.0155129]
[1768810775643,0.10014173,92979.0,92960.0,0.0155129]
[1768810775837,0.010761,92973.0,92961.0,0.09684]
[1768810776543,0.010761,92973.0,92960.0,0.0155129]
[1768810776743,0.010761,92973.0,92872.0,0.1791]
[1768810776744,0.11514168,92983.0,92963.0,0.0155129]
[1768810776943,0.11514168,92983.0,92963.0,0.1123529]
[1768810777139,0.010761,92975.0,92963.0,0.1123529]
[1768810778149,0.010761,92973.0,92963.0,0.09684]
[1768810778852,0.010761,92976.0,92963.0,0.09684]
[1768810782838,0.010761,92976.0,92963.0,0.18544984]
[1768810783652,0.010761,92976.0,92964.0,0.08860984]
[1768810786057,0.00016137,92982.0,92964.0,0.08860984]
[1768810786961,0.010761,92974.0,92964.0,0.08860984]
[1768810787547,0.010761,92971.0,92964.0,0.08860984]
[1768810788047,0.010762,92969.0,92964.0,0.09941237]
[1768810788245,0.010761,92972.0,92964.0,0.09941237]
[1768810788454,0.010761,92975.0,92964.0,0.01080253]
[1768810788651,0.08583822,92982.0,92964.0,0.01080253]
[1768810788856,0.010761,92973.0,92964.0,0.01080253]
[1768810792253,0.010761,92976.0,92964.0,0.01080253]
[1768810792857,0.010761,92974.0,92964.0,0.01080253]
[1768810793856,0.010761,92972.0,92964.0,0.01080253]
[1768810794554,0.010761,92972.0,92962.0,0.18544984]
[1768810794555,0.06073236,92977.0,92955.0,0.0604023]
[1768810794753,0.010762,92967.0,92956.0,0.09684]
[1768810795360,0.00839561,92967.0,92956.0,0.1572423]
[1768810795559,0.00839561,92967.0,92952.0,0.03819586]
[1768810795560,0.06073236,92973.0,92954.0,0.09684]
[1768810796657,0.06073236,92973.0,92952.0,0.0604023]
[1768810796658,0.07056351,92972.0,92952.0,0.0604023]
[1768810796866,0.010763,92957.0,92951.0,0.10624691]
[1768810797053,0.010763,92957.0,92951.0,0.00940691]
[1768810797258,0.010763,92957.0,92949.0,0.0023669]
[1768810798655,0.010763,92960.0,92949.0,0.0023669]
[1768810799057,0.010763,92960.0,92951.0,0.0604023]
[1768810799257,0.00016137,92963.0,92952.0,0.00940691]
[1768810799457,0.010763,92960.0,92952.0,0.00940691]
[1768810799658,0.010763,92958.0,92949.0,0.0627692]
[1768810800355,0.010763,92954.0,92949.0,9e-07]
[1768810801562,0.010764,92953.0,92937.0,0.0604023]
[1768810801764,0.010764,92953.0,92941.0,0.0604023]
[1768810801956,0.010763,92956.0,92943.0,0.0604023]
[1768810802463,0.15757236,92962.0,92936.0,0.09684]
[1768810802464,0.00016137,92963.0,92953.0,0.0604023]
[1768810802659,0.00016137,92963.0,92953.0,0.06980921]
[1768810802954,0.09684,92978.0,92959.0,0.06980921]
[1768810803159,0.02190869,92977.0,92965.0,0.06980921]
[1768810803355,0.01954281,92976.0,92965.0,0.06980921]
[1768810803560,0.09684,92978.0,92965.0,0.06980921]
[1768810803863,0.010761,92975.0,92965.0,0.06980921]
[1768810804160,0.010761,92975.0,92965.0,0.00940691]
[1768810804367,0.010761,92975.0,92961.0,0.0604023]
[1768810806963,0.010761,92977.0,92963.0,0.06980921]
[1768810807153,0.010761,92975.0,92963.0,0.06980921]
[1768810807970,0.010762,92971.0,92963.0,0.00940691]
[1768810808266,0.010762,92971.0,92960.0,0.20494135]
[1768810808462,0.010762,92971.0,92962.0,0.03819677]
[1768810808665,0.09684,92978.0,92962.0,0.03819677]
[1768810808876,0.09684,92978.0,92961.0,0.0604023]
[1768810809474,0.010761,92974.0,92961.0,0.0604023]
[1768810810173,0.010761,92977.0,92962.0,0.06980921]
[1768810810366,0.010761,92977.0,92964.0,0.06980921]
[1768810810966,0.00983115,92994.0,92970.0,0.06980921]
[1768810811163,0.04087553,92992.0,92972.0,0.06980921]
[1768810811473,0.09688,92993.0,92981.0,0.06980921]
[1768810812575,0.107639,92993.0,92981.0,0.06980921]
[1768810812978,0.09688,92993.0,92981.0,0.06980921]
[1768810813171,1.3485608,93002.0,92985.0,0.0604023]
[1768810813172,0.010758,93001.0,92985.0,0.0604023]
[1768810813375,0.010758,93001.0,92984.0,0.00940691]
[1768810813376,0.09688,93002.0,92987.0,0.0604023]
[1768810813877,0.09688,93002.0,92986.0,0.00940691]
[1768810814066,0.107638,93002.0,92986.0,0.06980921]
[1768810814374,0.107638,93002.0,92988.0,0.0604023]
[1768810815168,0.010758,92999.0,92988.0,0.0604023]
[1768810815364,0.02237073,92998.0,92989.0,0.14453905]
[1768810815568,0.010758,93004.0,92990.0,0.0604023]
[1768810815777,0.010758,92999.0,92986.0,0.0604023]
[1768810815978,0.010758,92997.0,92981.0,0.0604023]
[1768810816279,0.010758,92997.0,92981.0,0.06980921]
[1768810816480,0.010758,92997.0,92986.0,0.03819677]
[1768810816973,0.010758,92997.0,92989.0,0.03819677]
[1768810817175,0.010758,92997.0,92981.0,0.06980921]
[1768810817582,0.010758,92997.0,92987.0,0.03819677]
[1768810818082,0.010758,92997.0,92990.0,0.03819677]
[1768810818270,0.010758,92997.0,92987.0,0.03819677]
[1768810818471,0.010758,92997.0,92988.0,0.03819677]
[1768810818875,0.010758,92997.0,92990.0,0.03819677]
[1768810819077,0.010758,92997.0,92988.0,0.03819677]
[1768810819582,0.010758,92997.0,92990.0,0.03819677]
[1768810819875,0.010758,92997.0,92988.0,0.03819677]
[1768810820074,0.010758,92997.0,92987.0,0.03819677]
[1768810820274,0.010758,92997.0,92990.0,0.03819677]
[1768810820880,0.010758,92997.0,92992.0,0.03819677]
[1768810821084,0.010758,92997.0,92987.0,0.03819677]
[1768810821374,0.01453395,93005.0,92988.0,0.03819677]
[1768810821375,0.010758,93000.0,92988.0,0.03819677]
[1768810821578,0.010758,93000.0,92985.0,0.0604023]
[1768810821776,0.010758,93000.0,92988.0,0.03819677]
[1768810822173,0.010758,93000.0,92990.0,0.03819677]
[1768810822373,0.010758,93000.0,92988.0,0.03819677]
[1768810822775,0.010758,93000.0,92990.0,0.03819677]
[1768810822976,0.010758,93000.0,92988.0,0.03819677]
[1768810823378,0.010758,93000.0,92990.0,0.03819677]
[1768810823578,0.010758,93000.0,92989.0,0.03819677]
[1768810823777,0.010758,93003.0,92987.0,0.01667385]
[1768810823978,0.010758,93003.0,92988.0,0.01667385]
[1768810824287,0.010758,93003.0,92988.0,0.05487062]
[1768810824481,0.010758,93003.0,92990.0,0.01667385]
[1768810825281,0.010758,93001.0,92990.0,0.01667385]
[1768810825479,0.010758,93001.0,92991.0,0.03819677]
[1768810825682,0.010758,93001.0,92990.0,0.03819677]
[1768810825984,0.010758,93004.0,92990.0,0.03819677]
[1768810826182,0.010758,93004.0,92988.0,0.01667385]
[1768810826369,0.010758,93004.0,92989.0,0.01667385]
[1768810826569,0.00979134,93014.0,92992.0,0.01667385]
[1768810826774,0.00979134,93014.0,92991.0,0.010759]
[1768810826775,0.107596,93021.0,93003.0,0.01667385]
[1768810826975,0.010756,93019.0,93007.0,0.01667385]
[1768810827185,0.14453905,93020.0,93007.0,0.01667385]
[1768810827579,0.105756,93018.0,93007.0,0.01667385]
[1768810827979,0.105756,93018.0,93003.0,0.03819677]
[1768810827980,0.010756,93016.0,93003.0,0.03819677]
[1768810828381,0.010756,93016.0,93006.0,0.03819677]
[1768810828686,0.010756,93016.0,93000.0,0.18273582]
[1768810829081,0.095,93018.0,93005.0,0.03819677]
[1768810829386,0.095,93018.0,93000.0,0.14453905]
[1768810829387,0.085,93018.0,93007.0,0.03819677]
[1768810829579,0.075,93018.0,93004.0,0.010758]
[1768810829785,0.065,93018.0,93012.0,0.03819677]
[1768810829973,0.065,93018.0,93006.0,0.02601433]
[1768810830177,0.065,93018.0,93010.0,0.05487062]
[1768810830486,0.065,93018.0,93011.0,0.01667385]
[1768810830683,0.065,93018.0,93015.0,0.03819677]
[1768810830886,0.065,93018.0,93016.0,0.03819677]
[1768810831082,0.065,93018.0,93011.0,0.01667385]
[1768810831083,0.01522284,93041.0,93018.0,0.04194427]
[1768810831283,0.107594,93035.0,93019.0,0.04194427]
[1768810831482,0.107594,93035.0,93019.0,0.0037475]
[1768810831788,0.010754,93033.0,93020.0,0.03819677]
[1768810831986,0.010754,93034.0,93020.0,0.03819677]
[1768810832176,0.010754,93034.0,93021.0,0.03819677]
[1768810832575,0.010754,93034.0,93020.0,0.00356642]
[1768810832789,0.09684,93035.0,93027.0,0.03819677]
[1768810832981,0.107594,93035.0,93028.0,0.03819677]
[1768810833182,0.09684,93035.0,93025.0,0.03819677]
[1768810833380,0.107594,93035.0,93025.0,0.03819677]
[1768810833581,0.107594,93035.0,93029.0,0.03819677]
[1768810833885,0.010755,93028.0,93021.0,0.00120155]
[1768810834085,0.010755,93031.0,93021.0,0.00120155]
[1768810834487,0.010755,93031.0,93016.0,0.00120155]
[1768810835083,0.010754,93034.0,93016.0,0.00120155]
[1768810835483,0.010754,93032.0,93016.0,0.00120155]
[1768810835882,0.010754,93036.0,93016.0,0.00120155]
[1768810836084,0.010754,93036.0,93017.0,0.00121572]
[1768810836690,0.010754,93036.0,93022.0,0.0015043]
[1768810836890,0.010754,93039.0,93025.0,0.0016868]
[1768810837193,0.01311747,93044.0,93027.0,0.0015043]
[1768810837389,0.00236447,93044.0,93027.0,0.0015043]
[1768810837584,0.00236447,93044.0,93028.0,0.00013688]
[1768810837898,0.00236447,93044.0,93030.0,0.00013688]
[1768810838087,0.00236447,93044.0,93032.0,0.00013688]
[1768810838290,0.00236447,93044.0,93033.0,0.01089088]
[1768810838490,0.00236447,93044.0,93037.0,0.00013688]
[1768810838688,0.00148151,93044.0,93037.0,0.00013688]
[1768810839088,0.00148151,93044.0,93040.0,0.00159566]
[1768810839288,0.09684,93054.0,93042.0,0.00159566]
[1768810839698,0.00138094,93049.0,93043.0,0.0009834]
[1768810840091,0.00138094,93049.0,93044.0,0.00069937]
[1768810840284,0.00138094,93049.0,93037.0,0.0968]
[1768810840285,0.00138094,93049.0,93038.0,0.00069937]
[1768810840488,0.00138094,93049.0,93037.0,0.0968]
[1768810841388,0.00138094,93049.0,93036.0,0.00050073]
[1768810841588,0.00138094,93049.0,93037.0,0.09792071]
[1768810842493,0.00138094,93049.0,93038.0,0.00112071]
[1768810843098,0.00138094,93049.0,93038.0,0.00173943]
[1768810843294,0.00138094,93049.0,93040.0,0.0017647]
[1768810844192,0.00138094,93049.0,93042.0,0.00229691]
[1768810844593,0.00138094,93049.0,93037.0,0.09909691]
[1768810844891,0.00138094,93049.0,93038.0,0.00301007]
[1768810846295,0.00138094,93049.0,93038.0,0.00373938]
[1768810846495,0.01,93056.0,93042.0,0.00214504]
[1768810846696,0.01,93056.0,93043.0,0.0032285]
[1768810846903,0.01,93056.0,93048.0,0.01330638]
[1768810847202,0.01,93056.0,93048.0,0.00067412]
[1768810847402,0.01,93056.0,93046.0,0.00255438]
[1768810848202,0.01,93056.0,93048.0,0.00382343]
[1768810848697,0.01,93056.0,93047.0,0.010753]
[1768810848698,1e-06,93056.0,93053.0,0.00393689]
[1768810848903,1e-06,93056.0,93036.0,0.0968]
[1768810848904,0.05,93066.0,93060.0,0.00241307]
[1768810849104,0.04758691,93066.0,93060.0,0.00084014]
[1768810850589,0.04253738,93066.0,93056.0,0.14453905]
[1768810850902,0.010749,93080.0,93056.0,0.14453905]
[1768810850903,0.15528805,93080.0,93056.0,0.14453905]
[1768810851103,0.15528805,93080.0,93060.0,0.14453905]
[1768810851301,0.14453905,93080.0,93060.0,0.14453905]
[1768810851605,0.14453905,93080.0,93062.0,0.01157491]
[1768810852098,0.09916346,93084.0,93067.0,0.01157391]
[1768810852300,0.00236346,93084.0,93071.0,0.00082391]
[1768810852804,0.00236346,93084.0,93075.0,0.00519961]
[1768810853500,4.6e-07,93084.0,93076.0,0.00519961]
[1768810853897,4.6e-07,93084.0,93081.0,0.010749]
[1768810854399,4.6e-07,93084.0,93065.0,0.010751]
[1768810854400,0.01253527,93126.0,93089.0,0.00325745]
[1768810854604,0.01253527,93119.0,93094.0,0.00011151]
[1768810854794,0.00959086,93119.0,93097.0,0.00011151]
[1768810854992,0.02212613,93117.0,93097.0,0.010747]
[1768810855203,0.02212613,93117.0,93096.0,0.0968]
[1768810855399,0.02212613,93117.0,93096.0,0.09691151]
[1768810855597,0.0709189,93148.0,93096.0,0.09691151]
[1768810855598,0.01253527,93132.0,93106.0,0.00420406]
[1768810855799,0.00236193,93144.0,93126.0,0.010743]
[1768810856003,0.00236193,93144.0,93129.0,0.010743]
[1768810856204,0.00236193,93144.0,93126.0,0.00420406]
[1768810856398,0.00236193,93144.0,93127.0,0.00420406]
[1768810856707,0.00236193,93144.0,93110.0,0.18022998]
[1768810856708,0.01342207,93139.0,93124.0,0.09676]
[1768810857007,0.00959086,93139.0,93118.0,0.09676]
[1768810857207,0.00959086,93138.0,93118.0,0.09676]
[1768810857409,0.00959086,93138.0,93118.0,0.107504]
[1768810857608,0.02448806,93144.0,93120.0,0.010744]
[1768810857795,0.00383121,93142.0,93119.0,0.010744]
[1768810857993,0.00959086,93142.0,93118.0,0.09676]
[1768810858203,0.010742,93137.0,93107.0,1.510746]
[1768810858407,0.00959086,93129.0,93107.0,0.09676]
[1768810858703,0.00959086,93127.0,93107.0,0.09676]
[1768810859203,0.02212613,93127.0,93107.0,0.09676]
[1768810859410,0.00959086,93126.0,93107.0,0.09676]
[1768810860105,0.09676,93136.0,93111.0,0.00134956]
[1768810860298,0.00383121,93135.0,93118.0,0.010744]
[1768810860500,0.09676,93134.0,93118.0,0.010744]
[1768810860808,0.00383121,93132.0,93118.0,0.010744]
[1768810860995,0.00236182,93149.0,93128.0,0.010743]
[1768810861202,9.3e-07,93144.0,93140.0,0.010742]
[1768810861400,9.3e-07,93144.0,93136.0,0.010742]
[1768810861605,0.00236182,93149.0,93132.0,0.00229881]
[1768810861606,7.5e-07,93149.0,93132.0,0.00229881]
[1768810861806,7.5e-07,93149.0,93144.0,0.00263858]
[1768810862008,0.01,93161.0,93144.0,0.00263858]
[1768810862402,0.00959086,93160.0,93133.0,0.01338158]
[1768810862606,0.00959086,93160.0,93134.0,0.00263858]
[1768810863313,0.00959086,93159.0,93134.0,0.00263858]
[1768810863708,0.02212613,93159.0,93134.0,0.00263858]
[1768810864212,0.00959086,93158.0,93134.0,0.00263858]
[1768810864418,0.00959086,93149.0,93127.0,0.010743]
[1768810865305,0.00959086,93149.0,93125.0,0.01496522]
[1768810865511,0.00959086,93148.0,93125.0,0.010744]
[1768810865709,0.09672,93150.0,93130.0,0.01527363]
[1768810866006,0.01253527,93160.0,93135.0,0.010743]
[1768810866212,0.01,93161.0,93135.0,0.00453063]
[1768810866517,0.09672,93160.0,93135.0,0.00453063]
[1768810866702,0.01,93161.0,93135.0,0.00453063]
[1768810866908,0.01,93161.0,93141.0,0.010742]
[1768810867103,0.00236131,93169.0,93143.0,0.00533868]
[1768810867309,0.09908131,93169.0,93151.0,0.01607968]
[1768810867609,0.09908131,93169.0,93154.0,0.01074]
[1768810867808,0.09908131,93169.0,93157.0,0.01074]
[1768810868109,0.00236092,93184.0,93157.0,0.01401553]
[1768810868110,0.01253527,93183.0,93157.0,0.01401553]